fUSD/lending_fUSD_20240426
["ID","MTS","AMOUNT","RATE_DAILY","PERIOD"]
[323667959,1714152648851,-270.5396822,0.00011561,2]
[323667960,1714152648861,-500.0,0.00011561,2]
[323667961,1714152648870,-500.0,0.00011561,2]
[323667962,1714152648879,-500.0,0.00011561,2]
[323667963,1714152648889,-500.0,0.00011561,2]
[323667964,1714152648898,-516.79584585,0.00011561,2]
[323667965,1714152648908,-500.0,0.00011561,2]
[323667966,1714152648917,-500.0,0.00011561,2]
[323667967,1714152648927,-500.0,0.00011561,2]
[323667968,1714152648937,-500.0,0.00011561,2]
[323667969,1714152648948,-500.0,0.00011561,2]
[323667970,1714152648958,-500.0,0.00011561,2]
[323667971,1714152648967,-500.0,0.00011561,2]
[323667972,1714152648977,-493.22,0.00011561,2]
[323667973,1714152648986,-500.0,0.00011561,2]
[323667974,1714152648995,-549.62,0.00011561,2]
[323667975,1714152649005,-500.0,0.00011561,2]
[323667976,1714152649014,-441.79748502,0.00011561,2]
[323667977,1714152649024,-500.0,0.00011561,2]
[323667978,1714152649033,-500.0,0.00011561,2]
[323667979,1714152649042,-538.08,0.00011561,2]
[323667980,1714152649051,-159.36,0.00011763,2]
[323667981,1714152649060,-5349.17112004,0.0001179,2]
[323667982,1714152649070,-500.0,0.00011799,2]
[323667983,1714152649079,-155.73893662,0.000118,2]
[323667984,1714152649089,-138961.9099,0.000118,2]
[323667985,1714152649099,-700.0,0.000118,4]
[323667986,1714152649110,-500.0,0.00011831,2]
[323667987,1714152649120,-500.0,0.00011831,2]
[323667988,1714152649130,-500.0,0.00011831,2]
[323667989,1714152649140,-500.0,0.00011831,2]
[323667990,1714152649150,-1189.69,0.00011831,2]
[323667991,1714152649161,-865.26,0.00011832,2]
[323667992,1714152649172,-1138.35,0.00011832,2]
[323667993,1714152649181,-652.33,0.00011832,2]
[323667994,1714152649190,-1696.19,0.00011832,2]
[323667995,1714152649202,-1205.76,0.00011832,2]
[323667996,1714152649211,-1433.13,0.00011832,2]
[323667997,1714152649222,-1915.91,0.00011832,2]
[323667998,1714152649232,-876.69,0.00011832,2]
[323667999,1714152649243,-700.95,0.00011832,2]
[323668000,1714152649252,-4532.28,0.00011832,2]
[323668001,1714152649262,-1828.22,0.00011832,2]
[323668002,1714152649271,-2775.78,0.00011832,2]
[323668003,1714152649280,-2071.78,0.00011832,2]
[323668004,1714152649289,-902.32,0.00011832,2]
[323668005,1714152649299,-1976.48,0.00011832,2]
[323668006,1714152649308,-2203.21,0.00011832,2]
[323668007,1714152649317,-915.56,0.00011832,2]
[323668008,1714152649326,-500.0,0.00011832,2]
[323668009,1714152649335,-888.95,0.00011832,2]
[323668010,1714152649344,-2442.62,0.00011832,2]
[323668011,1714152649353,-678.9,0.00011832,2]
[323668012,1714152649364,-500.0,0.00011832,2]
[323668013,1714152649373,-4639.13,0.00011832,2]
[323668014,1714152649382,-2127.04,0.00011832,2]
[323668015,1714152649392,-500.0,0.00011832,2]
[323668016,1714152649402,-3260.45,0.00011832,2]
[323668017,1714152649412,-500.0,0.00011832,2]
[323668018,1714152649425,-2317.34,0.00011832,2]
[323668019,1714152649435,-500.0,0.00011833,2]
[323668020,1714152649446,-500.0,0.00011833,2]
[323668021,1714152649456,-500.96,0.00011833,2]
[323668022,1714152649465,-500.0,0.00011833,2]
[323668023,1714152649474,-703.5,0.00011833,2]
[323668024,1714152649483,-1137.54,0.00011833,2]
[323668025,1714152649494,-500.0,0.00011833,2]
[323668026,1714152649502,-500.0,0.00011833,2]
[323668027,1714152649511,-500.0,0.00011833,2]
[323668028,1714152649521,-1500.72,0.00011833,2]
[323668029,1714152649531,-524.5,0.00011833,2]
[323668030,1714152649541,-618.61,0.00011833,2]
[323668031,1714152649550,-500.0,0.00011833,2]
[323668032,1714152649559,-500.0,0.00011833,2]
[323668033,1714152649570,-500.0,0.00011833,2]
[323668034,1714152649579,-932.82,0.00011833,2]
[323668035,1714152649588,-500.0,0.00011833,2]
[323668036,1714152649597,-1538.8,0.00011833,2]
[323668037,1714152649606,-1521.87,0.00011833,2]
[323668038,1714152649616,-500.0,0.00011833,2]
[323668039,1714152649625,-500.0,0.00011833,2]
[323668040,1714152649634,-552.41,0.00011833,2]
[323668041,1714152649644,-1697.94,0.00011833,2]
[323668042,1714152649653,-615.24064876,0.00011833,2]
[323668043,1714152649662,-500.0,0.00011833,2]
[323668044,1714152649672,-651.13,0.00011833,2]
[323668045,1714152649681,-594.35,0.00011833,2]
[323668046,1714152649690,-500.0,0.00011833,2]
[323668047,1714152649701,-686.74,0.00011833,2]
[323668048,1714152649710,-235.9,0.00011833,2]
[323668049,1714152649719,-500.0,0.00011833,2]
[323668050,1714152649729,-539.3,0.00011833,2]
[323668051,1714152649738,-623.98,0.00011833,2]
[323668052,1714152649748,-500.0,0.00011833,2]
[323668053,1714152649757,-578.68,0.00011833,2]
[323668054,1714152649767,-1944.11,0.00011833,2]
[323668055,1714152649777,-500.0,0.00011833,2]
[323668056,1714152649786,-1094.02,0.00011833,2]
[323668057,1714152649796,-500.0,0.00011833,2]
[323668058,1714152649805,-1541.07,0.00011833,2]
[323668059,1714152649815,-606.83,0.00011833,2]
[323668060,1714152649825,-500.0,0.00011833,2]
[323668061,1714152649834,-1042.16,0.00011833,2]
[323668062,1714152649843,-608.61,0.00011833,2]
[323668063,1714152649854,-500.0,0.00011833,2]
[323668064,1714152649863,-500.0,0.00011833,2]
[323668065,1714152649873,-500.0,0.00011833,2]
[323668066,1714152649883,-3156.86281563,0.00011833,2]
[323668067,1714152650271,-5275.28718437,0.00011833,2]
[323668068,1714152650281,-1429.23,0.00011833,2]
[323668069,1714152650291,-500.0,0.00011833,2]
[323668070,1714152650301,-7681.17,0.00011833,2]
[323668071,1714152650311,-8762.46,0.00011833,2]
[323668072,1714152650320,-2563.29,0.00011833,2]
[323668073,1714152650329,-1039.18,0.00011833,2]
[323668074,1714152650339,-500.0,0.00011833,2]
[323668075,1714152650348,-1019.97,0.00011833,2]
[323668076,1714152650358,-500.0,0.00011833,2]
[323668077,1714152650368,-3533.62,0.00011833,2]
[323668078,1714152650377,-3765.55,0.00011833,2]
[323668079,1714152650387,-736.35,0.00011833,2]
[323668080,1714152650397,-6504.27,0.00011833,2]
[323668081,1714152650407,-500.0,0.00011833,2]
[323668082,1714152650418,-1592.05,0.00011833,2]
[323668083,1714152650431,-3157.13,0.00011833,2]
[323668084,1714152650441,-1135.78,0.00011833,2]
[323668085,1714152650451,-644.12,0.00011833,2]
[323668086,1714152650460,-500.0,0.00011833,2]
[323668087,1714152650470,-500.0,0.00011833,2]
[323668088,1714152650480,-500.0,0.00011833,2]
[323668089,1714152650488,-7969.39,0.00011833,2]
[323668090,1714152650497,-500.0,0.00011833,2]
[323668091,1714152650507,-1366.85,0.00011833,2]
[323668092,1714152650516,-2800.02,0.00011833,2]
[323668093,1714152650525,-1139.1,0.00011833,2]
[323668094,1714152650534,-13491.72,0.00011833,2]
[323668095,1714152650543,-614.26,0.00011833,2]
[323668096,1714152650552,-1952.86,0.00011833,2]
[323668097,1714152650561,-500.0,0.00011833,2]
[323668098,1714152650570,-2172.02,0.00011833,2]
[323668099,1714152650579,-2097.22,0.00011833,2]
[323668100,1714152650588,-1646.7,0.00011833,2]
[323668101,1714152650597,-500.0,0.00011833,2]
[323668102,1714152650606,-500.0,0.00011833,2]
[323668103,1714152650615,-1005.85,0.00011833,2]
[323668104,1714152650625,-786.45,0.00011833,2]
[323668105,1714152650636,-3677.42,0.00011833,2]
[323668106,1714152650648,-2434.91,0.00011833,2]
[323668107,1714152650658,-1714.94,0.00011833,2]
[323668108,1714152650669,-1408.07,0.00011833,2]
[323668109,1714152650679,-500.0,0.00011833,2]
[323668110,1714152650691,-500.0,0.00011833,2]
[323668111,1714152650702,-500.0,0.00011833,2]
[323668112,1714152650711,-500.0,0.00011833,2]
[323668113,1714152650721,-500.0,0.00011833,2]
[323668114,1714152650731,-2182.57,0.00011833,2]
[323668115,1714152650741,-2126.65,0.00011833,2]
[323668116,1714152650751,-500.0,0.00011833,2]
[323668117,1714152650760,-1585.81,0.00011833,2]
[323668118,1714152650770,-1806.59,0.00011833,2]
[323668119,1714152650780,-500.0,0.00011833,2]
[323668120,1714152650790,-1443.3,0.00011833,2]
[323668121,1714152650799,-500.0,0.00011833,2]
[323668122,1714152650809,-1954.01,0.00011833,2]
[323668123,1714152650819,-500.0,0.00011833,2]
[323668124,1714152650828,-2523.19,0.00011833,2]
[323668125,1714152650838,-5903.03,0.00011833,2]
[323668126,1714152650847,-500.0,0.00011833,2]
[323668127,1714152650857,-1056.76,0.00011833,2]
[323668128,1714152650868,-850.88,0.00011833,2]
[323668129,1714152650878,-882.15450463,0.00011833,2]
[323668130,1714152650910,-878.52,0.00011286,2]
[323668131,1714152650920,-500.0,0.00011286,2]
[323668132,1714152650930,-1366.82549537,0.00011833,2]
[323668133,1714152650940,-500.0,0.00011833,2]
[323668134,1714152650951,-500.0,0.00011833,2]
[323668135,1714152650961,-592.11,0.00011833,2]
[323668136,1714152650971,-1398.04,0.00011833,2]
[323668137,1714152650981,-500.0,0.00011833,2]
[323668138,1714152650991,-914.25,0.00011833,2]
[323668139,1714152651001,-3366.48,0.00011833,2]
[323668140,1714152651010,-605.23,0.00011833,2]
[323668141,1714152651020,-500.0,0.00011833,2]
[323668142,1714152651030,-500.0,0.00011833,2]
[323668143,1714152651039,-2883.8,0.00011833,2]
[323668144,1714152651048,-500.0,0.00011833,2]
[323668145,1714152651058,-500.0,0.00011833,2]
[323668146,1714152651068,-500.0,0.00011833,2]
[323668147,1714152651077,-1035.0,0.00011833,2]
[323668148,1714152651089,-747.93,0.00011833,2]
[323668149,1714152651100,-3146.96509886,0.00011833,2]
[323668150,1714152651643,-286.37210649,0.00011285,2]
[323668151,1714152651656,-213.62789351,0.00011285,2]
[323668152,1714152651666,-517.13482957,0.00011286,2]
[323668153,1714152651995,-329.23517043,0.00011286,2]
[323668154,1714152652006,-500.0,0.00011559,2]
[323668155,1714152652015,-878.52,0.0001156,2]
[323668156,1714152652025,-846.37,0.0001156,2]
[323668157,1714152652035,-500.0,0.00011831,2]
[323668158,1714152652044,-841.01482957,0.00011833,2]
[323668159,1714152652724,-112.60867078,0.00011283,2]
[323668160,1714152653617,-387.39132922,0.00011283,2]
[323668161,1714152653627,-500.0,0.00011283,2]
[323668162,1714152653637,-155.69435453,0.00011284,2]
[323668163,1714152653647,-500.0,0.00011557,2]
[323668164,1714152653657,-359.32419883,0.00011831,2]
[323668165,1714152653670,-140.67580117,0.00011831,2]
[323668166,1714152653680,-664.70606649,0.00011833,2]
[323668167,1714152653701,-711.685,0.00011833,2]
[323668168,1714152653713,-392.59522686,0.00011833,2]
[323668169,1714152653724,-532.55377822,0.00011833,2]
[323668170,1714152653733,-1742.3,0.00011833,2]
[323668171,1714152653742,-1410.86,0.00011833,2]
[323668172,1714152653752,-1397.30137195,0.00011833,2]
[323668173,1714152653764,-649.08,0.00011833,2]
[323668174,1714152653788,-2079.50862805,0.00011833,2]
[323668175,1714152653798,-4837.47622178,0.00011833,2]
[323668176,1714152653811,-389.55377822,0.00011833,2]
[323668177,1714152653821,-4007.5,0.00011833,2]
[323668178,1714152653831,-500.0,0.00011833,2]
[323668179,1714152653841,-500.0,0.00011833,2]
[323668180,1714152653850,-1772.46,0.00011833,2]
[323668181,1714152653860,-500.0,0.00011833,2]
[323668182,1714152653870,-500.0,0.00011834,2]
[323668183,1714152653879,-500.0,0.00011834,2]
[323668184,1714152653889,-474.64588287,0.00011834,2]
[323668185,1714152653901,-25.35411713,0.00011834,2]
[323668186,1714152653911,-439.86757061,0.00011834,2]
[323668187,1714152888608,-250.0,0.00010097,2]
[323668188,1714152888631,-414.45482597,0.00010125,2]
[323668189,1714152888654,-171.97,0.00010126,2]
[323668190,1714152888676,-542.0,0.00010901,2]
[323668191,1714152888698,-542.0,0.00010904,2]
[323668192,1714152888719,-542.0,0.00010907,2]
[323668193,1714152888740,-542.0,0.0001091,2]
[323668194,1714152888763,-542.0,0.00010913,2]
[323668195,1714152888785,-542.0,0.00010916,2]
[323668196,1714152888807,-542.0,0.00010919,2]
[323668197,1714152888830,-542.0,0.00010922,2]
[323668198,1714152888852,-542.0,0.00010924,2]
[323668199,1714152888873,-542.0,0.00010927,2]
[323668200,1714152888897,-542.0,0.0001093,2]
[323668201,1714152888917,-542.0,0.00010933,2]
[323668202,1714152888937,-542.0,0.00010936,2]
[323668203,1714152888959,-542.0,0.00010939,2]
[323668204,1714152888983,-542.0,0.00010942,2]
[323668205,1714152889006,-542.0,0.00010945,2]
[323668206,1714152889027,-542.0,0.00010947,2]
[323668207,1714152889048,-542.0,0.0001095,2]
[323668208,1714152889071,-485.57517403,0.00010953,2]
[323668209,1714153038844,-162.14721555,0.00010541,2]
[323668210,1714153038867,-361.28,0.00010542,2]
[323668211,1714153038889,-414.45482597,0.00010787,2]
[323668212,1714153038910,-150.0,0.00010788,2]
[323668213,1714153038935,-2912.11795848,0.00010789,2]
[323668214,1714153039489,-4000.0,0.00010789,2]
[323668215,1714153040179,-4000.0,0.00010789,2]
[323668216,1714153040981,-4000.0,0.00010789,2]
[323668217,1714153041849,-4000.0,0.00010789,2]
[323668218,1714153042500,-4000.0,0.00010789,2]
[323668219,1714153043282,-987.88204152,0.00010789,2]
[323668220,1714153050840,540.94,8.716e-05,2]
[323668228,1714153178779,200.0,0.00010512,2]
[323668229,1714153301984,1183.73,0.00010505,2]
[323668230,1714153313328,171.97,0.00010532,2]
[323668231,1714153380316,915.47795848,0.00010532,2]
[323668232,1714153380341,4000.0,0.00010532,2]
[323668233,1714153380366,4000.0,0.00010532,2]
[323668234,1714153380386,4000.0,0.00010532,2]
[323668235,1714153380408,3849.96204152,0.00010532,2]
[323668236,1714153468690,150.03795848,0.00010451,2]
[323668237,1714153468713,99.96204152,0.00010451,2]
[323668238,1714153469601,542.03417704,8.426e-05,2]
[323668239,1714153469790,944.18297447,0.00010532,2]
[323668240,1714153470970,2413.82080697,0.00010532,2]
[323668241,1714153470992,4000.0,0.00010532,2]
[323668242,1714153471013,4000.0,0.00010532,2]
[323668243,1714153485650,-3233.41164737,0.00010532,2]
[323668244,1714153485673,-414.45482597,0.00010856,2]
[323668245,1714153485695,-352.13352666,0.00010856,2]
[323668246,1714153486864,-62.32129931,0.00010856,2]
[323668247,1714153486887,-944.77415243,0.00010857,2]
[323668248,1714153486907,-2992.90454826,0.00010859,2]
[323668249,1714153487245,-28.81915174,0.00010859,2]
[323668250,1714153487267,-56.42482597,0.00010953,2]
[323668251,1714153487289,-542.0,0.00010956,2]
[323668252,1714153487310,-2000.0,0.00010959,3]
[323668253,1714153499543,866.62469746,0.00010532,2]
[323668254,1714153510022,506.13132483,0.00010532,2]
[323668255,1714153510045,4000.0,0.00010532,2]
[323668256,1714153510067,4000.0,0.00010532,2]
[323668257,1714153510088,4000.0,0.00010532,2]
[323668258,1714153510109,4000.0,0.00010532,2]
[323668259,1714153510131,3668.32528983,0.00010532,2]
[323668260,1714153514073,155.0,0.00010532,2]
[323668261,1714153515473,176.67471017,0.00010532,2]
[323668262,1714153515501,689.96293401,0.00010532,2]
[323668263,1714153527955,1820.94927564,0.00010532,2]
[323668264,1714153531999,195.71648188,0.00010532,2]
[323668270,1714153541479,706.73913597,0.00010979,2]
[323668271,1714153550859,586.6321725,0.00010532,2]
[323668272,1714153577953,-4000.0,0.00010532,2]
[323668273,1714153578542,-4000.0,0.00010532,2]
[323668274,1714153579594,-4000.0,0.00010532,2]
[323668275,1714153580266,-4000.0,0.00010532,2]
[323668276,1714153581037,-1994.13274954,0.00010532,2]
[323668307,1714153602877,2005.86725046,0.00010532,2]
[323668308,1714153749743,-4000.0,8.588e-05,2]
[323668309,1714153750603,-1000.0,8.588e-05,2]
[323668310,1714153750630,-2471.0,8.589e-05,2]
[323668311,1714153758105,-586.17,8.59e-05,2]
[323668312,1714153758124,-300.0,0.00010531,2]
[323668313,1714153758144,-150.0,0.00010531,2]
[323668314,1714153758165,-1463.82,0.00010532,2]
[323668323,1714153831614,-435.09343002,0.00010413,2]
[323668325,1714153831670,-418.53656998,0.00010413,2]
[323668326,1714153831679,-597.73676659,0.00010496,2]
[323668327,1714153831695,-1235.70358176,0.00010496,2]
[323668328,1714153831704,-14.29641824,0.00010497,2]
[323668329,1714153831726,-176.44358176,0.00010497,2]
[323668330,1714153831736,-2933.66375099,0.00010531,2]
[323668331,1714153831748,-1399.88917205,0.00010531,2]
[323668332,1714153831758,-249.64702289,0.00010532,2]
[323668333,1714153832498,-1153.17306,0.00010532,2]
[323668334,1714153832509,-377.664,0.00010532,2]
[323668335,1714153832592,-11584.82866665,0.00010532,2]
[323668336,1714153832602,-289.03407512,0.00010532,2]
[323668337,1714153832611,-190.74,0.00010549,2]
[323668338,1714153832621,-636.15,0.00010569,2]
[323668339,1714153832632,-586.17,0.00010854,2]
[323668340,1714153832642,-160.92387271,0.00010984,2]
[323668341,1714153832653,-4344.5397,0.00011082,2]
[323668342,1714153832664,-22487.39009414,0.00011082,2]
[323668343,1714153832674,-1000.0,0.00011083,2]
[323668344,1714153832684,-1000.0,0.00011083,2]
[323668345,1714153832695,-1574.6521,0.00011083,2]
[323668346,1714153832705,-1671.6576,0.00011084,2]
[323668347,1714153832715,-49719.4266,0.00011084,2]
[323668348,1714153832726,-403.59004974,0.00011181,2]
[323668349,1714153832736,-1780.0018805,0.00011181,2]
[323668350,1714153832757,-155.0,0.00011181,2]
[323668351,1714153832767,-155.0,0.00011181,2]
[323668352,1714153832779,-487.2863411,0.00011181,2]
[323668353,1714153832789,-304.68178634,0.00011181,2]
[323668354,1714153832801,-565.34977281,0.00011181,2]
[323668355,1714153832810,-155.0,0.00011181,2]
[323668356,1714153832820,-157.40461354,0.00011181,2]
[323668357,1714153832830,-192.83038536,0.00011181,2]
[323668358,1714153832839,-578.55,0.00011182,2]
[323668359,1714153832849,-500.0,0.00011182,2]
[323668360,1714153832860,-500.0,0.00011182,2]
[323668361,1714153832869,-500.0,0.00011182,2]
[323668362,1714153832878,-500.0,0.00011182,2]
[323668363,1714153832887,-500.0,0.00011182,2]
[323668364,1714153832896,-500.0,0.00011182,2]
[323668365,1714153832905,-448.39,0.00011182,2]
[323668366,1714153832915,-500.0,0.00011182,2]
[323668367,1714153832924,-178.32697276,0.00011182,2]
[323668368,1714153832933,-500.0,0.00011182,2]
[323668369,1714153832943,-500.0,0.00011182,2]
[323668370,1714153832952,-500.0,0.00011182,2]
[323668371,1714153832961,-500.0,0.00011182,2]
[323668372,1714153832970,-500.0,0.00011182,2]
[323668373,1714153832980,-500.0,0.00011182,2]
[323668374,1714153832992,-2096.02,0.00011182,2]
[323668375,1714153833002,-3175.96,0.00011182,2]
[323668376,1714153833012,-500.0,0.00011182,2]
[323668377,1714153833026,-577.61997394,0.00011182,2]
[323668378,1714153833066,-499.99,0.00011182,2]
[323668379,1714153833111,-500.0,0.00011182,2]
[323668380,1714153833148,-500.0,0.00011182,2]
[323668381,1714153833188,-500.0,0.00011182,2]
[323668382,1714153833228,-500.0,0.00011182,2]
[323668383,1714153833238,-500.0,0.00011182,2]
[323668384,1714153833252,-500.0,0.00011182,2]
[323668385,1714153833262,-500.0,0.00011182,2]
[323668386,1714153833272,-500.0,0.00011182,2]
[323668387,1714153833282,-500.0,0.00011182,2]
[323668388,1714153833291,-500.0,0.00011182,2]
[323668389,1714153833301,-500.0,0.00011182,2]
[323668390,1714153833311,-500.0,0.00011182,2]
[323668391,1714153833320,-500.0,0.00011182,2]
[323668392,1714153833329,-500.0,0.00011182,2]
[323668393,1714153833339,-500.0,0.00011182,2]
[323668394,1714153833348,-500.0,0.00011182,2]
[323668395,1714153833358,-1111.03,0.00011182,2]
[323668396,1714153833367,-500.0,0.00011182,2]
[323668397,1714153833376,-500.0,0.00011182,2]
[323668398,1714153833386,-150.0,0.00011182,2]
[323668399,1714153833397,-606.23318038,0.00011182,2]
[323668400,1714153833407,-500.0,0.00011182,2]
[323668401,1714153833417,-500.0,0.00011182,2]
[323668402,1714153833426,-500.0,0.00011182,2]
[323668403,1714153833435,-5034.41233588,0.00011182,2]
[323668404,1714153833445,-500.0,0.00011182,2]
[323668405,1714153833454,-500.0,0.00011182,2]
[323668406,1714153833463,-500.0,0.00011182,2]
[323668407,1714153833472,-500.0,0.00011182,2]
[323668408,1714153833481,-500.0,0.00011182,2]
[323668409,1714153833492,-500.0,0.00011182,2]
[323668410,1714153833501,-2741.2,0.00011182,2]
[323668411,1714153833511,-500.0,0.00011182,2]
[323668412,1714153833521,-500.0,0.00011182,2]
[323668413,1714153833530,-500.0,0.00011182,2]
[323668414,1714153833539,-500.0,0.00011182,2]
[323668415,1714153833549,-500.0,0.00011182,2]
[323668416,1714153833558,-500.0,0.00011182,2]
[323668417,1714153833567,-500.0,0.00011182,2]
[323668418,1714153833576,-500.0,0.00011182,2]
[323668419,1714153833585,-500.0,0.00011182,2]
[323668420,1714153833595,-500.0,0.00011182,2]
[323668421,1714153833604,-500.0,0.00011182,2]
[323668422,1714153833613,-1918.88,0.00011182,2]
[323668423,1714153833622,-500.0,0.00011182,2]
[323668424,1714153833632,-500.0,0.00011182,2]
[323668425,1714153833641,-439.48531942,0.00011182,2]
[323668426,1714153833650,-645.98,0.00011182,2]
[323668427,1714153833659,-500.0,0.00011182,2]
[323668428,1714153833668,-404.32,0.00011182,2]
[323668429,1714153833677,-500.0,0.00011182,2]
[323668430,1714153833686,-500.0,0.00011182,2]
[323668431,1714153833695,-1197.54,0.00011182,2]
[323668432,1714153833704,-3594.29,0.00011182,2]
[323668433,1714153833713,-874.76,0.00011182,2]
[323668434,1714153833722,-181.28,0.00011182,2]
[323668435,1714153833731,-500.0,0.00011182,2]
[323668436,1714153833743,-500.0,0.00011182,2]
[323668437,1714153833753,-500.0,0.00011182,2]
[323668438,1714153833762,-500.0,0.00011182,2]
[323668439,1714153833771,-1114.75,0.00011182,2]
[323668440,1714153833783,-1899.4,0.00011182,2]
[323668441,1714153833792,-509.56750766,0.00011182,2]
[323668442,1714153833801,-833.01,0.00011182,2]
[323668443,1714153833811,-500.0,0.00011182,2]
[323668444,1714153833821,-1661.85,0.00011182,2]
[323668445,1714153833830,-420.49325478,0.00011182,2]
[323668446,1714153833847,-79.50674522,0.00011182,2]
[323668447,1714153833857,-303.42450369,0.00011182,2]
[323668448,1714153833869,-196.57549631,0.00011182,2]
[323668449,1714153833878,-56.26685046,0.00011182,2]
[323668450,1714153833889,-1528.37314954,0.00011182,2]
[323668451,1714153833898,-500.0,0.00011182,2]
[323668452,1714153833907,-500.0,0.00011182,2]
[323668453,1714153833917,-319.32436264,0.00011182,2]
[323668454,1714153833928,-1084.62563736,0.00011182,2]
[323668455,1714153833938,-408.93497646,0.00011182,2]
[323668456,1714153833958,-91.06502354,0.00011182,2]
[323668457,1714153833967,-789.42688203,0.00011182,2]
[323668460,1714153838097,-514.0,0.00011182,2]
[323668461,1714153838148,-318.42311797,0.00011182,2]
[323668462,1714153838159,-500.0,0.00011182,2]
[323668463,1714153838168,-500.0,0.00011182,2]
[323668464,1714153838178,-500.0,0.00011182,2]
[323668465,1714153838188,-1393.05,0.00011182,2]
[323668466,1714153838197,-500.0,0.00011182,2]
[323668467,1714153838207,-861.92,0.00011182,2]
[323668468,1714153838216,-614.4,0.00011182,2]
[323668470,1714153838226,-500.0,0.00011182,2]
[323668472,1714153838236,-2115.64,0.00011182,2]
[323668474,1714153838247,-2456.83,0.00011182,2]
[323668476,1714153838256,-625.38,0.00011182,2]
[323668478,1714153838266,-334.53,0.00011182,2]
[323668480,1714153838275,-500.0,0.00011182,2]
[323668482,1714153838285,-500.0,0.00011182,2]
[323668484,1714153838294,-500.0,0.00011182,2]
[323668486,1714153838303,-2733.78,0.00011182,2]
[323668488,1714153838313,-500.0,0.00011182,2]
[323668490,1714153838322,-2262.6,0.00011182,2]
[323668492,1714153838331,-500.0,0.00011182,2]
[323668494,1714153838341,-500.0,0.00011182,2]
[323668496,1714153838350,-500.0,0.00011182,2]
[323668498,1714153838359,-912.92,0.00011182,2]
[323668500,1714153838368,-538.41,0.00011182,2]
[323668502,1714153838377,-926.46,0.00011182,2]
[323668504,1714153838387,-988.12,0.00011182,2]
[323668507,1714153838397,-500.0,0.00011182,2]
[323668508,1714153838407,-3238.8,0.00011182,2]
[323668511,1714153838418,-898.24,0.00011182,2]
[323668513,1714153838429,-565.85,0.00011182,2]
[323668516,1714153838450,-500.0,0.00011182,2]
[323668518,1714153838461,-500.0,0.00011182,2]
[323668520,1714153838470,-500.0,0.00011182,2]
[323668522,1714153838479,-4559.89,0.00011182,2]
[323668524,1714153838489,-500.0,0.00011182,2]
[323668526,1714153838503,-500.0,0.00011182,2]
[323668528,1714153838513,-326.68743083,0.00011182,2]
[323668530,1714153838523,-500.0,0.00011182,2]
[323668532,1714153838535,-346.42,0.00011182,2]
[323668534,1714153838545,-500.0,0.00011182,2]
[323668536,1714153838555,-2409.14,0.00011182,2]
[323668538,1714153838565,-500.0,0.00011182,2]
[323668540,1714153838577,-1185.15,0.00011182,2]
[323668542,1714153838588,-500.0,0.00011182,2]
[323668544,1714153838598,-606.8,0.00011182,2]
[323668546,1714153838608,-500.0,0.00011182,2]
[323668548,1714153838618,-500.0,0.00011182,2]
[323668549,1714153838628,-500.0,0.00011182,2]
[323668550,1714153838637,-1386.71,0.00011182,2]
[323668551,1714153838647,-500.0,0.00011182,2]
[323668552,1714153838658,-657.61,0.00011182,2]